fUSD/lending_fUSD_20240216
["ID","MTS","AMOUNT","RATE_DAILY","PERIOD"]
[314185446,1708053047409,-151.0,0.0003988,7]
[314185447,1708053047419,-151.961248,0.0003988,7]
[314185448,1708053047428,-200.0,0.0003988,2]
[314185449,1708053047438,-151.0,0.0003988,7]
[314185450,1708053047447,-299.966791,0.0003988,7]
[314185451,1708053047456,-163.962284,0.0003988,7]
[314185452,1708053047466,-151.0,0.0003988,7]
[314185453,1708053047475,-154.516623,0.0003988,7]
[314185454,1708053047484,-151.0,0.0003988,7]
[314185455,1708053047494,-206.659345,0.0003988,7]
[314185456,1708053047503,-153.312168,0.0003988,5]
[314185457,1708053047512,-166.477529,0.0003988,7]
[314185458,1708053047522,-210.621214,0.0003988,7]
[314185459,1708053047531,-151.0,0.0003988,7]
[314185460,1708053047541,-151.0,0.0003988,7]
[314185461,1708053047550,-151.0,0.0003988,7]
[314185462,1708053047560,-384.241331,0.0003988,7]
[314185463,1708053047570,-151.0,0.0003988,7]
[314185464,1708053047581,-384.241331,0.0003988,7]
[314185465,1708053047590,-153.324299,0.0003988,7]
[314185466,1708053047600,-153.324299,0.0003988,7]
[314185467,1708053047610,-151.0,0.0003988,7]
[314185468,1708053047619,-151.0,0.0003988,7]
[314185469,1708053047630,-151.0,0.0003988,7]
[314185470,1708053047641,-163.626146,0.0003988,7]
[314185471,1708053047650,-163.626146,0.0003988,7]
[314185472,1708053047659,-176.453921,0.0003988,7]
[314185473,1708053047668,-151.0,0.0003988,7]
[314185474,1708053047678,-154.266885,0.0003988,7]
[314185475,1708053047688,-151.0,0.0003988,7]
[314185476,1708053047698,-151.0,0.0003988,7]
[314185477,1708053047708,-151.0,0.0003988,2]
[314185478,1708053047718,-151.0,0.0003988,7]
[314185479,1708053047728,-151.0,0.0003988,2]
[314185480,1708053047738,-151.0,0.0003988,7]
[314185481,1708053047747,-1000.0,0.00039888,2]
[314185482,1708053047757,-150.0,0.00039897,2]
[314185483,1708053047766,-1000.0,0.00039899,2]
[314185484,1708053047775,-1914.4,0.000399,7]
[314185485,1708053047785,-216.07,0.000399,7]
[314185486,1708053047794,-500.0,0.00039922,2]
[314185487,1708053047803,-155.04,0.00039954,2]
[314185488,1708053047812,-150.0,0.00039964,2]
[314185489,1708053047821,-150.0,0.00039967,2]
[314185490,1708053047830,-152.0,0.00039984,4]
[314185491,1708053047839,-200.0,0.00039987,2]
[314185492,1708053047848,-150.0,0.00039995,2]
[314185493,1708053047857,-213.0,0.00039996,7]
[314185494,1708053047867,-1000.0,0.00039999,2]
[314185495,1708053047876,-542.63943108,0.00039999,31]
[314185496,1708053047885,-199.55639065,0.00039999,31]
[314185497,1708053047894,-500.0,0.00039999,31]
[314185498,1708053047903,-500.0,0.00039999,31]
[314185499,1708053047913,-528.96261871,0.00039999,31]
[314185500,1708053047922,-173.74636087,0.00039999,31]
[314185501,1708053047932,-500.0,0.00039999,31]
[314185502,1708053047941,-531.42492244,0.00039999,31]
[314185503,1708053047950,-295.00514144,0.00039999,31]
[314185504,1708053047959,-500.0,0.00039999,31]
[314185505,1708053047968,-500.0,0.00039999,31]
[314185506,1708053047978,-500.0,0.00039999,31]
[314185507,1708053047987,-232.55975617,0.00039999,31]
[314185508,1708053047996,-150.0,0.00039999,2]
[314185509,1708053048006,-150.0,0.00039999,2]
[314185510,1708053048018,-4915.0,0.0004,8]
[314185511,1708053048028,-63874.89192658,0.0004,7]
[314185512,1708053048037,-8059.67311308,0.0004,30]
[314185513,1708053048046,-10229.07616071,0.0004,7]
[314185514,1708053048056,-10000.0,0.0004,10]
[314185515,1708053048065,-10000.0,0.0004,10]
[314185516,1708053048074,-10000.0,0.0004,10]
[314185517,1708053048084,-500.12345678,0.0004,5]
[314185518,1708053048094,-436.78316726,0.0004,4]
[314185519,1708053048104,-10000.0,0.0004,30]
[314185520,1708053048113,-15256.63400307,0.0004,15]
[314185521,1708053048122,-353.9837784,0.0004,41]
[314185522,1708053048133,-1442.4805346,0.0004,30]
[314185523,1708053048144,-223.22250547,0.0004,30]
[314185524,1708053048153,-302.0,0.0004,30]
[314185525,1708053048163,-105487.44708606,0.0004,30]
[314185526,1708053048177,-40548.10055742,0.0004,30]
[314185527,1708053048188,-1856.62554156,0.0004,30]
[314185528,1708053048257,-781.84105728,0.0003978,2]
[314185529,1708053048267,-10195.86470076,0.0004,30]
[314185530,1708053048278,-629.27928532,0.0004,30]
[314185531,1708053048290,-2127.57608946,0.0004,30]
[314185532,1708053048399,-395.27259106,0.0004,30]
[314185533,1708053048413,-3968.36865397,0.0004,30]
[314185534,1708053048427,-2986.46382857,0.0004,30]
[314185562,1708054232204,-150.0,0.0003,30]
[314185563,1708054232214,-111.4999963,0.0003,2]
[314185564,1708054232227,-43.5000037,0.0003,2]
[314185565,1708054232236,-291.00746892,0.00030999,4]
[314185566,1708054232259,-913.61495301,0.00030999,4]
[314185567,1708054232271,-148.90140235,0.00030999,4]
[314185568,1708054232280,-400.0,0.00030999,2]
[314185569,1708054232291,-165.7977189,0.00031,7]
[314185570,1708054232317,-334.18590284,0.00031,7]
[314185571,1708054232329,-442.76851,0.00031,7]
[314185572,1708054232340,-2478.9264946,0.00031,7]
[314185573,1708054232374,-2393.63840648,0.00031,7]
[314185574,1708054232389,-933.70666071,0.00031,7]
[314185575,1708054232431,-322.61275986,0.00031,7]
[314185616,1708054238219,-9707.19023404,0.00031,7]
[314185617,1708054238328,-904.21,0.00031,7]
[314185618,1708054238386,-32849.96331257,0.00031,7]
[314185619,1708054238397,-159.74651182,0.0003137,2]
[314185620,1708054238407,-156.38156638,0.00033276,2]
[314185621,1708054238416,-380.21,0.00033373,2]
[314185622,1708054238425,-155.0,0.00034244,4]
[314185623,1708054238434,-163.1,0.00034245,2]
[314185624,1708054238444,-23900.0,0.00034245,2]
[314185625,1708054238453,-161.23,0.00034521,2]
[314185626,1708054238462,-2603.68790694,0.00035056,10]
[314185627,1708054238471,-1346.43268834,0.00035064,10]
[314185628,1708054238482,-456.9016671,0.00035068,10]
[314185629,1708054238491,-415.24410976,0.00035068,10]
[314185630,1708054238500,-2000.0,0.00035239,2]
[314185631,1708054238509,-279.9,0.00035369,2]
[314185632,1708054238519,-250.0,0.00035369,2]
[314185633,1708054238528,-191.47,0.00035414,2]
[314185634,1708054238537,-380.21,0.00035637,2]
[314185635,1708054238546,-1000.0,0.00035756,2]
[314185636,1708054238556,-161.23,0.00035798,2]
[314185637,1708054238567,-150.0,0.00035866,2]
[314185638,1708054238576,-250.0,0.00035998,111]
[314185639,1708054238585,-2253.0,0.00036,2]
[314185640,1708054238594,-499.99,0.00036154,2]
[314185641,1708054238603,-197.76,0.0003623,2]
[314185642,1708054238613,-250.0,0.00036852,2]
[314185643,1708054238622,-2826.44,0.00036945,2]
[314185644,1708054238632,-279.9,0.00037013,2]
[314185645,1708054238641,-161.23,0.00037075,2]
[314185646,1708054238650,-154.63,0.00037222,2]
[314185647,1708054238659,-35463.02775168,0.00037501,2]
[314185648,1708054238668,-1000.91861143,0.00037501,2]
[314185649,1708054238678,-297673.7651,0.00037521,2]
[314185650,1708054238687,-328.28,0.00037649,2]
[314185651,1708054238697,-151.021624,0.00037748,18]
[314185652,1708054238706,-151.021624,0.00037848,18]
[314185653,1708054238715,-1337.1251124,0.000379,2]
[314185654,1708054238724,-1337.12511225,0.000379,2]
[314185655,1708054238734,-1337.12511225,0.000379,2]
[314185656,1708054238742,-1337.12511225,0.000379,2]
[314185657,1708054238752,-380.21,0.000379,2]
[314185658,1708054238761,-151.021624,0.00037948,18]
[314185659,1708054238770,-155.26580881,0.00038,4]
[314185660,1708054238779,-1337.12511225,0.00038006,2]
[314185661,1708054238788,-151.021624,0.00038048,18]
[314185662,1708054238798,-1337.12511225,0.00038132,2]
[314185663,1708054238807,-151.021624,0.00038148,24]
[314185664,1708054238816,-1381.11208504,0.00038215,3]
[314185666,1708054238825,-151.021624,0.00038248,19]
[314185668,1708054238834,-34246.0966,0.00038256,2]
[314185670,1708054238844,-2318.47315309,0.00038256,2]
[314185672,1708054238853,-1337.12511225,0.00038259,2]
[314185674,1708054238861,-2903.57301122,0.00038261,5]
[314185676,1708054238871,-35463.02775165,0.00038323,2]
[314185678,1708054238880,-1000.91861138,0.00038323,2]
[314185679,1708054238889,-151.021624,0.00038348,19]
[314185680,1708054238898,-161.23,0.00038352,2]
[314185681,1708054238907,-500.0,0.00038356,7]
[314185682,1708054238917,-500.0,0.00038356,7]
[314185683,1708054238926,-494.8193932,0.00038356,7]
[314185684,1708054238935,-500.0,0.00038356,7]
[314185685,1708054238944,-516.83861742,0.00038356,7]
[314185686,1708054238953,-500.0,0.00038356,7]
[314185687,1708054238965,-500.0,0.00038356,7]
[314185688,1708054238975,-502.96829363,0.00038356,7]
[314185689,1708054238985,-500.0,0.00038356,7]
[314185690,1708054238994,-500.0,0.00038356,2]
[314185691,1708054239003,-500.0,0.00038356,7]
[314185692,1708054239013,-398.63178718,0.00038356,7]
[314185693,1708054239022,-500.0,0.00038356,7]
[314185694,1708054239031,-500.0,0.00038356,7]
[314185695,1708054239040,-500.0,0.00038356,7]
[314185696,1708054239049,-500.0,0.00038356,7]
[314185697,1708054239058,-500.0,0.00038356,7]
[314185698,1708054239067,-580.35,0.00038356,7]
[314185699,1708054239077,-500.0,0.00038356,7]
[314185700,1708054239087,-500.0,0.00038356,7]
[314185701,1708054239097,-500.0,0.00038356,7]
[314185702,1708054239106,-500.0,0.00038356,7]
[314185703,1708054239115,-500.0,0.00038356,7]
[314185704,1708054239124,-500.0,0.00038356,7]
[314185705,1708054239135,-500.0,0.00038356,7]
[314185706,1708054239144,-500.0,0.00038356,7]
[314185707,1708054239153,-500.0,0.00038356,7]
[314185708,1708054239163,-576.21698247,0.00038356,7]
[314185709,1708054239172,-500.0,0.00038356,7]
[314185710,1708054239184,-500.0,0.00038356,7]
[314185711,1708054239192,-500.0,0.00038356,7]
[314185712,1708054239203,-500.0,0.00038356,7]
[314185713,1708054239213,-500.0,0.00038356,7]
[314185714,1708054239222,-500.0,0.00038356,7]
[314185715,1708054239231,-594.19727419,0.00038356,7]
[314185716,1708054239240,-500.0,0.00038356,7]
[314185717,1708054239249,-353.07809425,0.00038356,7]
[314185718,1708054239258,-500.0,0.00038356,7]
[314185719,1708054239268,-500.0,0.00038356,7]
[314185720,1708054239279,-500.0,0.00038356,7]
[314185721,1708054239288,-1263.37,0.00038356,7]
[314185722,1708054239298,-572.0,0.00038356,7]
[314185723,1708054239307,-500.0,0.00038356,7]
[314185724,1708054239316,-513.32,0.00038356,7]
[314185725,1708054239325,-500.0,0.00038356,7]
[314185726,1708054239334,-342.0,0.00038356,7]
[314185727,1708054239343,-586.42154646,0.00038356,7]
[314185728,1708054239352,-500.0,0.00038356,7]
[314185729,1708054239361,-401.0,0.00038356,7]
[314185730,1708054239371,-500.0,0.00038356,7]
[314185731,1708054239380,-500.0,0.00038356,7]
[314185732,1708054239394,-250.0,0.00038356,7]
[314185733,1708054239403,-500.0,0.00038356,7]
[314185734,1708054239412,-552.52,0.00038356,7]
[314185735,1708054239421,-1953.44,0.00038356,15]
[314185736,1708054239431,-155.04,0.00038356,2]
[314185737,1708054239441,-1337.12511225,0.00038385,2]
[314185738,1708054239450,-151.021624,0.00038448,24]
[314185739,1708054239460,-507.37967952,0.00038488,10]
[314185740,1708054239470,-277.93,0.00038495,2]
[314185741,1708054239480,-1337.12511225,0.00038511,2]
[314185742,1708054239490,-151.021624,0.00038548,24]
[314185743,1708054239499,-206.0,0.00038592,2]
[314185744,1708054239509,-177.648591,0.000386,36]
[314185745,1708054239518,-504.33897023,0.0003863,7]
[314185746,1708054239526,-500.0,0.0003863,7]
[314185747,1708054239536,-580.35,0.0003863,7]
[314185748,1708054239545,-500.0,0.0003863,7]
[314185749,1708054239554,-501.97421646,0.0003863,7]
[314185750,1708054239562,-500.0,0.0003863,7]
[314185751,1708054239572,-500.0,0.0003863,7]
[314185752,1708054239581,-500.0,0.0003863,7]
[314185753,1708054239591,-500.0,0.0003863,7]
[314185754,1708054239600,-500.0,0.0003863,7]
[314185755,1708054239609,-500.0,0.0003863,7]
[314185756,1708054239618,-500.0,0.0003863,7]
[314185757,1708054239628,-500.0,0.0003863,7]
[314185758,1708054239637,-500.0,0.0003863,7]
[314185759,1708054239646,-500.0,0.0003863,7]
[314185760,1708054239655,-500.0,0.0003863,7]
[314185761,1708054239664,-500.0,0.0003863,7]
[314185762,1708054239673,-500.0,0.0003863,7]
[314185763,1708054239682,-500.0,0.0003863,7]
[314185764,1708054239691,-500.0,0.0003863,7]
[314185765,1708054239700,-500.0,0.0003863,7]
[314185766,1708054239710,-500.0,0.0003863,7]
[314185767,1708054239719,-1263.37,0.0003863,7]
[314185768,1708054239728,-500.0,0.0003863,7]
[314185769,1708054239738,-513.32,0.0003863,7]
[314185770,1708054239747,-500.0,0.0003863,7]
[314185771,1708054239756,-612.25967779,0.0003863,7]
[314185772,1708054239766,-500.0,0.0003863,7]
[314185773,1708054239775,-500.0,0.0003863,7]
[314185774,1708054239784,-500.0,0.0003863,7]
[314185775,1708054239793,-552.52,0.0003863,7]
[314185776,1708054239803,-1337.12511225,0.00038637,2]
[314185777,1708054239812,-171.021624,0.00038648,24]
[314185778,1708054239821,-279.9,0.00038657,2]
[314185779,1708054239830,-572.0,0.00038701,7]
[314185780,1708054239839,-342.0,0.00038701,7]
[314185781,1708054239848,-400.0,0.00038701,7]
[314185782,1708054239857,-150.0,0.00038701,7]
[314185783,1708054239867,-171.021624,0.00038748,24]
[314185784,1708054239876,-1337.12511225,0.00038764,2]
[314185785,1708054239885,-180.93252905,0.00038792,2]
[314185786,1708054239894,-938.19572763,0.000388,9]
[314185787,1708054239904,-379.44,0.000388,2]
[314185789,1708054239913,-522.20524103,0.000388,2]
[314185790,1708054239922,-500.0,0.00038802,7]
[314185791,1708054239931,-500.0,0.00038802,7]
[314185792,1708054239941,-318.17986544,0.00038802,7]
[314185793,1708054239950,-500.0,0.00038802,7]
[314185794,1708054239959,-500.0,0.00038802,7]
[314185795,1708054239968,-500.0,0.00038802,7]
[314185796,1708054239978,-500.0,0.00038802,7]
[314185797,1708054239987,-500.0,0.00038802,7]
[314185798,1708054239996,-150.0,0.00038802,7]
[314185799,1708054240006,-500.0,0.00038802,7]
[314185800,1708054240015,-500.0,0.00038802,7]
[314185801,1708054240024,-500.0,0.00038802,7]
[314185802,1708054240034,-500.0,0.00038802,7]
[314185803,1708054240043,-500.0,0.00038802,7]
[314185804,1708054240052,-500.0,0.00038802,7]
[314185805,1708054240062,-558.66390981,0.00038802,7]
[314185806,1708054240071,-500.0,0.00038802,7]
[314185807,1708054240080,-259.47,0.00038802,7]
[314185808,1708054240089,-583.52818269,0.00038802,7]
[314185809,1708054240098,-356.34746043,0.00038802,7]
[314185810,1708054240108,-500.0,0.00038802,7]
[314185811,1708054240117,-500.0,0.00038802,7]
[314185812,1708054240126,-500.0,0.00038802,7]
[314185813,1708054240135,-500.0,0.00038802,7]
[314185814,1708054240144,-500.0,0.00038802,7]
[314185815,1708054240153,-500.0,0.00038802,7]
[314185816,1708054240162,-500.0,0.00038802,7]
[314185817,1708054240172,-500.0,0.00038802,7]
[314185818,1708054240181,-500.0,0.00038802,7]
[314185819,1708054240190,-500.0,0.00038802,7]
[314185820,1708054240199,-500.0,0.00038802,7]
[314185821,1708054240208,-500.0,0.00038802,7]
[314185822,1708054240218,-500.0,0.00038802,7]
[314185823,1708054240227,-500.0,0.00038802,7]
[314185824,1708054240237,-500.0,0.00038802,7]
[314185825,1708054240246,-500.0,0.00038802,7]
[314185826,1708054240255,-500.0,0.00038802,7]
[314185827,1708054240265,-500.0,0.00038802,7]
[314185828,1708054240275,-500.0,0.00038802,7]
[314185829,1708054240284,-500.0,0.00038802,7]
[314185830,1708054240294,-500.0,0.00038802,7]
[314185831,1708054240303,-500.0,0.00038802,7]
[314185832,1708054240312,-500.0,0.00038802,7]
[314185833,1708054240322,-500.0,0.00038802,7]
[314185834,1708054240331,-500.0,0.00038802,7]
[314185835,1708054240340,-500.0,0.00038802,7]
[314185836,1708054240349,-500.0,0.00038802,7]
[314185837,1708054240359,-500.0,0.00038802,7]
[314185838,1708054240368,-500.0,0.00038802,7]
[314185839,1708054240378,-1367.93,0.00038802,7]
[314185840,1708054240389,-551.39109692,0.00038802,7]
[314185841,1708054240399,-682.03,0.00038802,7]
[314185842,1708054240408,-500.0,0.00038802,7]
[314185843,1708054240417,-576.41785819,0.00038802,7]
[314185844,1708054240427,-500.0,0.00038802,7]
[314185845,1708054240436,-500.0,0.00038802,7]
[314185846,1708054240446,-589.12256117,0.00038802,7]
[314185847,1708054240455,-500.0,0.00038802,7]
[314185848,1708054240464,-500.0,0.00038802,7]
[314185849,1708054240475,-575.41845283,0.00038802,7]
[314185850,1708054240485,-164.322404,0.00038802,7]
[314185851,1708054240495,-500.0,0.00038802,7]
[314185852,1708054240505,-500.0,0.00038802,7]
[314185853,1708054240514,-500.0,0.00038802,7]
[314185854,1708054240525,-500.0,0.00038802,7]
[314185855,1708054240535,-500.0,0.00038802,7]
[314185856,1708054240544,-500.0,0.00038802,7]
[314185857,1708054240554,-182.82828618,0.00038802,7]
[314185859,1708054240565,-500.0,0.00038802,7]
[314185861,1708054240575,-443.17137904,0.00038802,7]
[314185863,1708054240584,-500.0,0.00038802,7]
[314185864,1708054240594,-500.0,0.00038802,7]
[314185865,1708054240603,-500.0,0.00038802,7]
[314185867,1708054240613,-500.0,0.00038802,7]
[314185868,1708054240623,-530.62392186,0.00038802,7]
[314185869,1708054240632,-561.63568545,0.00038802,7]
[314185870,1708054240642,-500.0,0.00038802,7]
[314185871,1708054240652,-596.00071743,0.00038802,7]
[314185872,1708054240661,-568.00669328,0.00038802,7]
[314185873,1708054240671,-1123.89,0.00038802,7]
[314185874,1708054240680,-500.0,0.00038802,7]
[314185875,1708054240690,-500.0,0.00038802,7]
[314185876,1708054240700,-500.0,0.00038802,7]
[314185877,1708054240710,-536.41544918,0.00038802,7]
[314185878,1708054240719,-500.0,0.00038802,7]
[314185879,1708054240729,-239.71010732,0.00038802,7]
[314185880,1708054240739,-500.0,0.00038802,7]
[314185881,1708054240748,-500.0,0.00038802,7]
[314185882,1708054240757,-500.0,0.00038802,7]
[314185883,1708054240768,-500.0,0.00038802,7]
[314185884,1708054240778,-500.0,0.00038802,7]
[314185885,1708054240787,-500.0,0.00038802,7]
[314185886,1708054240796,-5694.96,0.00038802,7]
[314185887,1708054240806,-604.94,0.00038802,7]
[314185888,1708054240816,-500.0,0.00038802,7]
[314185889,1708054240825,-500.0,0.00038802,7]
[314185890,1708054240835,-500.0,0.00038802,7]
[314185891,1708054240844,-169.75369119,0.00038802,7]
[314185892,1708054240853,-500.0,0.00038802,7]
[314185893,1708054240863,-361.09851034,0.00038802,7]
[314185894,1708054240872,-500.0,0.00038802,7]
[314185895,1708054240881,-500.0,0.00038802,7]
[314185896,1708054240890,-6295.14,0.00038802,7]
[314185897,1708054240901,-500.0,0.00038802,7]
[314185898,1708054240910,-500.0,0.00038802,7]
[314185899,1708054240919,-500.0,0.00038802,7]
[314185900,1708054240929,-500.0,0.00038802,7]
[314185901,1708054240939,-608.02341481,0.00038802,7]
[314185902,1708054240949,-500.0,0.00038802,7]
[314185903,1708054240959,-500.0,0.00038802,7]
[314185904,1708054240969,-965.53,0.00038802,7]
[314185905,1708054240978,-500.0,0.00038802,7]
[314185906,1708054240988,-500.0,0.00038802,7]
[314185907,1708054240997,-500.0,0.00038802,7]
[314185908,1708054241006,-500.0,0.00038802,7]
[314185909,1708054241016,-500.0,0.00038802,2]
[314185910,1708054241025,-500.0,0.00038802,7]
[314185911,1708054241033,-500.0,0.00038802,7]
[314185912,1708054241043,-500.0,0.00038802,7]
[314185913,1708054241053,-500.0,0.00038802,7]
[314185914,1708054241064,-500.0,0.00038802,7]
[314185915,1708054241073,-500.0,0.00038802,7]
[314185916,1708054241082,-500.0,0.00038802,7]
[314185917,1708054241092,-500.0,0.00038802,7]
[314185918,1708054241101,-500.0,0.00038802,7]
[314185919,1708054241111,-303.4595118,0.00038803,7]
[314185920,1708054241121,-16298.47762171,0.00038803,2]
[314185921,1708054241130,-393.0930504,0.00038817,2]
[314185922,1708054241140,-8339.23,0.0003882,2]
[314185923,1708054241150,-8339.23,0.0003882,2]
[314185924,1708054241161,-8339.23,0.0003882,2]
[314185925,1708054241171,-8339.23,0.0003882,2]
[314185926,1708054241182,-8339.23,0.0003882,2]
[314185927,1708054241191,-8339.23,0.0003882,2]
[314185928,1708054241200,-8339.23,0.0003882,2]
[314185929,1708054241210,-8339.23,0.0003882,2]
[314185930,1708054241220,-8339.23,0.0003882,2]
[314185931,1708054241382,-8339.23,0.0003882,2]
[314185932,1708054241396,-8339.23,0.0003882,2]
[314185933,1708054241406,-8339.23,0.0003882,2]
[314185934,1708054241416,-8339.23,0.0003882,2]
[314185935,1708054241425,-8339.23,0.0003882,2]
[314185936,1708054241435,-8339.23,0.0003882,2]
[314185937,1708054241445,-8339.26955437,0.0003882,2]
[314185938,1708054241455,-192.00508336,0.00038836,7]
[314185939,1708054241464,-530.07786253,0.00038836,7]
[314185940,1708054241474,-500.0,0.00038836,7]
[314185941,1708054241484,-500.0,0.00038836,7]
[314185942,1708054241493,-500.0,0.00038836,7]
[314185943,1708054241503,-500.0,0.00038836,7]
[314185944,1708054241513,-500.0,0.00038836,7]
[314185945,1708054241523,-500.0,0.00038836,7]
[314185946,1708054241532,-500.0,0.00038836,7]
[314185947,1708054241541,-500.0,0.00038836,7]
[314185948,1708054241551,-500.0,0.00038836,7]
[314185949,1708054241560,-1000.0,0.00038836,7]
[314185950,1708054241569,-1845.97,0.00038836,7]
[314185951,1708054241578,-520.78976608,0.00038836,7]
[314185952,1708054241588,-500.0,0.00038836,7]
[314185953,1708054241597,-520.60988991,0.00038836,2]
[314185954,1708054241606,-500.0,0.00038836,7]
[314185955,1708054241616,-507.99335284,0.00038836,7]
[314185956,1708054241624,-522.03748507,0.00038836,7]
[314185957,1708054241634,-531.87922563,0.00038836,7]
[314185958,1708054241643,-500.0,0.00038836,7]
[314185959,1708054241652,-505.12521151,0.00038836,7]
[314185960,1708054241661,-533.1562138,0.00038836,7]
[314185961,1708054241670,-530.82609544,0.00038836,7]
[314185962,1708054241680,-186.97193478,0.00038836,2]
[314185963,1708054241689,-504.3917733,0.00038836,7]
[314185964,1708054241698,-500.0,0.00038836,7]
[314185965,1708054241707,-500.0,0.00038836,7]
[314185966,1708054241716,-500.0,0.00038836,7]
[314185967,1708054241726,-500.0,0.00038836,7]
[314185968,1708054241736,-171.021624,0.00038848,24]
[314185969,1708054241745,-151.021624,0.00038872,24]
[314185970,1708054241754,-262.3571618,0.00038879,2]
[314185971,1708054241764,-1337.12511225,0.0003889,2]
[314185972,1708054241773,-220.86804314,0.00038899,7]
[314185973,1708054241782,-79346.1268956,0.000389,3]
[314185974,1708054241792,-245000.0,0.000389,2]
[314185975,1708054241802,-500.0,0.000389,2]
[314185976,1708054241811,-3000.0,0.000389,7]
[314185977,1708054241821,-500.0,0.00038904,7]
[314185978,1708054241830,-580.35,0.00038904,7]
[314185979,1708054241839,-500.0,0.00038904,7]
[314185980,1708054241848,-500.0,0.00038904,7]
[314185981,1708054241858,-500.0,0.00038904,7]
[314185982,1708054241867,-500.0,0.00038904,7]
[314185983,1708054241877,-500.0,0.00038904,7]
[314185984,1708054241886,-500.0,0.00038904,7]
[314185985,1708054241896,-331.00135467,0.00038904,7]
[314185986,1708054241906,-500.0,0.00038904,7]
[314185987,1708054241916,-500.0,0.00038904,7]
[314185988,1708054241926,-630.51779054,0.00038904,7]
[314185989,1708054241935,-500.0,0.00038904,7]
[314185990,1708054241944,-500.0,0.00038904,7]
[314185991,1708054241953,-500.0,0.00038904,7]
[314185992,1708054241962,-500.0,0.00038904,7]
[314185993,1708054241971,-500.0,0.00038904,7]
[314185994,1708054241981,-500.0,0.00038904,7]
[314185995,1708054241992,-500.0,0.00038904,7]
[314185996,1708054242001,-500.0,0.00038904,7]
[314185997,1708054242010,-1263.37,0.00038904,7]
[314185998,1708054242019,-500.0,0.00038904,7]
[314185999,1708054242028,-513.32,0.00038904,7]
[314186000,1708054242038,-500.0,0.00038904,7]
[314186001,1708054242047,-500.0,0.00038904,7]
[314186002,1708054242056,-309.16666785,0.00038904,7]
[314186003,1708054242066,-193.30826437,0.00038904,7]
[314186004,1708054242075,-552.52,0.00038904,7]
[314186005,1708054242084,-171.021624,0.00038948,24]
[314186006,1708054242094,-151.0,0.00038952,7]
[314186007,1708054242103,-151.021624,0.00038972,24]
[314186008,1708054242112,-3772.04945,0.00039,2]
[314186009,1708054242122,-177.38,0.00039,2]
[314186010,1708054242131,-1337.12511225,0.00039016,2]
[314186011,1708054242141,-572.0,0.00039046,7]
[314186012,1708054242150,-342.0,0.00039046,7]
[314186013,1708054242159,-400.0,0.00039046,7]
[314186014,1708054242168,-150.0,0.00039046,7]
[314186015,1708054242178,-171.021624,0.00039048,24]
[314186016,1708054242188,-151.021624,0.00039072,24]
[314186017,1708054242197,-341.53978919,0.00039076,7]
[314186018,1708054242207,-500.0,0.00039076,7]
[314186019,1708054242216,-500.0,0.00039076,7]
[314186020,1708054242225,-500.0,0.00039076,7]
[314186021,1708054242235,-437.96504203,0.00039076,7]
[314186022,1708054242244,-500.0,0.00039076,7]
[314186023,1708054242253,-500.0,0.00039076,7]
[314186024,1708054242263,-500.0,0.00039076,7]